Cogmind - Beta 17 @@@ ROGUE MODE // 2026.08.01 @ 10:47:46 Player: Fizzik Result: Destroyed by G-34 Mercenary with Small Laser Performance ------------- Evolutions (0) 0 Regions Visited (2) 400 Robots Destroyed (36) 180 Value Destroyed (757) 757 Prototype IDs (3) 60 Alien Tech Used (0) 0 Bonus (5500) 5500 TOTAL SCORE: 6897 Bonus ------- Prayed to X0-1V1 5000 Major X0-1V1 Interference 500 Cogmind --------- Core Integrity 0/250 Matter 291/300 Energy 236/250 System Corruption 2% Temperature Cool (6) Movement Walking (400) Ox4 Location -10/Subcaves Parts ------- > --- POWER (1) -------- Ion Engine > --- PROPULSION (2) --- Aluminum Leg Aluminum Leg > --- UTILITY (2) ------ Huge Storage Unit X0-1V1's Piety Tracker > --- WEAPON (2) ------- Particle Gun Subdweller Machine Gun > --- INVENTORY (25) --- Ion Engine Large Battery (200) Peak State ------------ > --- POWER ------------ Ion Engine > --- PROPULSION ------- Aluminum Leg Aluminum Leg > --- UTILITY ---------- Huge Storage Unit X0-1V1's Piety Tracker > --- WEAPON ----------- Particle Gun Subdweller Machine Gun > --- INVENTORY -------- Ion Engine Large Battery [Rating: 21] Favorites ----------- Power Ion Engine Engine Ion Engine Propulsion Aluminum Leg Treads Light Treads Leg Aluminum Leg Hover Unit Hover Unit Flight Unit Flight Unit Utility Huge Storage Unit Device Sensor Array Storage Huge Storage Unit Protection Scrap Shield Weapon Small Laser Energy Gun Small Laser Ballistic Gun Light Assault Rifle Launcher Grenade Launcher Special Melee Weapon Datajack Build | -11 -10 -10 ------- Run | Yrd Mat Sub Slots Evolved . | . . . Power . | . . . Propulsion . | . . . Utility . | . . . Weapon . | . . . Parts Attached 34 | 9 21 4 Power 4 | 2 2 . Engine 4 | 2 2 . Core . | . . . Reactor . | . . . Propulsion 10 | 2 8 . Treads 1 | . 1 . Leg 7 | 2 5 . Wheel . | . . . Hover 1 | . 1 . Flight 1 | . 1 . Utility 9 | 2 5 2 Device 4 | 1 2 1 Storage 4 | 1 3 . Processor . | . . . Hackware . | . . . Protection 1 | . . 1 Artifact . | . . . Weapon 11 | 3 6 2 Energy Gun 6 | 3 3 . Energy Cannon . | . . . Ballistic Gun 3 | . 1 2 Ballistic Cannon . | . . . Launcher 1 | . 1 . Special Weapon . | . . . Impact Weapon . | . . . Slashing Weapon . | . . . Piercing Weapon . | . . . Special Melee Weapon 1 | . 1 . Unidentified Prototypes 1 | . . 1 Parts Lost 6 | . 5 1 Power 1 | . 1 . Propulsion 1 | . 1 . Utility 1 | . . 1 Weapon 3 | . 3 . Highest Loss Streak 4 | . 4 1 To Critical Strikes . | . . . Average Backups 4 | 1 4 4 Power 1 | . 1 1 Propulsion . | . . . Utility 1 | . 1 2 Weapon . | . 1 . Tool/Special . | . . . Unused Backups 12 | 2 4 6 Power 3 | . 1 2 Propulsion 4 | 2 . 2 Utility 4 | . 3 1 Weapon . | . . . Tool/Special 1 | . . 1 Average Slot Usage (%) 92 | . 92 85 Engine 13 | . 13 14 Treads 5 | . 5 . Leg 15 | . 15 28 Device 7 | . 7 1 Storage 19 | . 20 5 Energy Gun 12 | . 12 14 Ballistic Gun 5 | . 4 14 Launcher 5 | . 6 . Special Melee Weapon 4 | . 4 . Peak Build Rating 21 | 9 9 21 Average Rating 7 | 5 7 11 On Entrance 5 | . 9 8 Avg Prop Armor Cover (%) 8 | . 8 . Naked Turns . | . . . Heaviest Build 93 | 9 92 93 Greatest Support 20 | 20 20 20 Greatest Overweight (x) 14 | . 14 4 Average Overweight (x) 2 | . 3 1 Largest Inventory Capacity 25 | 5 25 25 Average Capacity 21 | 5 22 6 Most Carried 9 | 4 8 9 Average Carried 4 | 1 4 4 Final Capacity 25 | 5 25 25 Final Carried 7 | 1 7 2 Class Distribution -------------------- 65% | Mutant 34% | Scavenger-Mutant Dominant Class ---------------- Mutant | -10/Materials Mutant | -10/Subcaves Resources | -11 -10 -10 ----------- Run | Yrd Mat Sub Matter Collected 698 | 293 313 92 Remotely . | . . . Salvage Created 890 | 147 525 218 Parts 68 | 9 47 12 Haulers Intercepted 1 | . 1 . Recyclers Shooed . | . . . Parts Field Recycled . | . . . Retrieved Matter . | . . . Parts Self-Destructed . | . . . Prevented . | . . . Parts Restored . | . . . Kills | -11 -10 -10 ------- Run | Yrd Mat Sub Combat Hostiles Destroyed 23 | 1 17 5 Guns 18 | 1 12 5 AOE 5 | . 5 . Classes Destroyed 8 | 3 4 1 Worker 4 | 1 3 . Tunneler 4 | 4 . . Hauler 1 | . 1 . Recycler 1 | . 1 . Watcher 3 | . 3 . Swarmer 9 | . 9 . Grunt 9 | 1 8 . Subdweller 5 | . . 5 Best Kill Streak 5 | 5 5 5 Combat Bots Only 5 | 1 4 5 Max Kills in Single Turn 3 | 1 3 1 Gunslinging . | . . . Exploded 2 | . 2 . Melee . | . . . Uniques/NPCs Destroyed . | . . . Combat | -11 -10 -10 -------- Run | Yrd Mat Sub Hostile Shots Fired 146 | 6 114 26 Missed 43 | . 38 5 Hits 103 | 6 76 21 Projectile 103 | 6 76 21 Damage Taken 1282 | 70 820 392 Core 252 | 23 195 34 Absorbed by Shields . | . . . Core Remaining (%) 90 | 90 . . Volleys Fired 96 | 9 73 14 Largest 2 | 2 2 2 Hottest 93 | 90 90 93 Shots Fired 170 | 18 124 28 Gun 157 | 18 111 28 Cannon . | . . . Launcher 13 | . 13 . Special . | . . . Kinetic 50 | . 36 14 Thermal 93 | 11 68 14 Explosive 13 | . 13 . Electromagnetic 14 | 7 7 . Robot Hit Streak 17 | 3 9 17 Robot Miss Streak 7 | 2 7 1 Penetration Max . | . . . Secondary Targets 2 | . 1 1 Max Gunslinging Chain 1 | . 1 1 Shots Hit Robots 93 | 10 59 24 Core Hits 57 | 7 40 10 Critical Kills . | . . . Critical Parts Destroyed . | . . . Critical Strikes 2 | 1 . 1 Burn 2 | 1 . 1 Melee Attacks . | . . . Impact . | . . . Slashing . | . . . Piercing . | . . . Sneak Attacks . | . . . Combat Hostiles . | . . . Follow-up Attacks . | . . . Damage Inflicted 1829 | 198 1247 384 Guns 1149 | 155 610 384 Cannons . | . . . Explosions 676 | 43 633 . Melee . | . . . Ramming 4 | . 4 . Kinetic 347 | . 152 195 Thermal 819 | 143 487 189 Explosive 591 | . 591 . Electromagnetic 68 | 55 13 . Impact . | . . . Slashing . | . . . Piercing . | . . . Highest Corruption 2 | . . 2 Average Corruption 2 | . . 2 Corruption Purged . | . . . Corruption Blocked . | . . . Effects 1 | . . 1 Message Errors 1 | . . 1 Overload Shots . | . . . Overflow Damage 8 | . 8 . Projectiles . | . . . Explosions 8 | . 8 . Melee . | . . . Knockbacks . | . . . Impact . | . . . Kinetic . | . . . Secondary . | . . . Self-Inflicted Damage 50 | . 50 . Shots 2 | . 2 . Rammed 1 | . 1 . Targets Rammed 1 | . 1 . Kicked . | . . . Crushed . | . . . Highest Temperature 228 | 228 192 36 Average Temperature 58 | 99 56 12 Received Heat Transfer 381 | 36 273 72 Siege Activations . | . . . Martial Activations . | . . . Shielding Activations . | . . . Robots Disrupted . | . . . Combat Hostiles . | . . . Robots Corrupted . | . . . Combat Hostiles . | . . . Parts Fried . | . . . Impact Corruptions . | . . . Robots Melted . | . . . Combat Hostiles . | . . . Parts Melted 1 | . 1 . Heat Transferred 2047 | 420 1109 518 Parts Sabotaged . | . . . Parts Stolen . | . . . Parts Stripped . | . . . Power Chain Reactions 1 | 1 . . Alert | -11 -10 -10 ------- Run | Yrd Mat Sub Maximum Alert Level 1 | . 1 . Low Security (%) 99 | 100 99 . Level 1 . | . . . Level 2 . | . . . Level 3 . | . . . Level 4 . | . . . Level 5 . | . . . High Security . | . . . Max Security . | . . . Peak Influence 198 | 40 198 . Initial 13 | . 13 . Average 90 | 8 95 . Influence Increases 749 | 45 704 . Destroy 0b10 Robot/C 360 | 20 340 . Destroy 0b10 Robot/NC 65 | 25 40 . Destroy Leader 78 | . 78 . Successful Hack 5 | . 5 . Disable Machine 90 | . 90 . Destroy Structure 106 | . 106 . Partial Spotted 15 | . 15 . Lose Combat Pursuer 30 | . 30 . Influence Decreases 729 | 25 550 154 Entered New Map 91 | . 7 84 Time Decay 490 | 25 405 60 Lost Part 60 | . 50 10 Purge Threat 88 | . 88 . Squads Dispatched 3 | . 3 . Investigation 2 | . 2 . Extermination . | . . . Reinforcement 1 | . 1 . Assault . | . . . Garrison . | . . . Intercept . | . . . Searches Triggered . | . . . Construction Impeded . | . . . Haulers Reinforced . | . . . Active Scanning Responses . | . . . Cargo Convoy Interrupts . | . . . Stealth | -11 -10 -10 --------- Run | Yrd Mat Sub Distress Signals 1 | . 1 . Communications Jammed . | . . . Distress Signals . | . . . Times Spotted 33 | 1 24 8 Peak Tracking Total 7 | 1 4 7 Tactical Retreats 1 | . 1 . Traps | -11 -10 -10 ------- Run | Yrd Mat Sub Traps Triggered 1 | . 1 . Indirectly . | . . . Trap Hack Attempts . | . . . Triggered . | . . . Disarmed . | . . . Reprogrammed . | . . . Reused . | . . . Traps Extracted . | . . . Installed . | . . . Triggered . | . . . Machines | -11 -10 -10 ---------- Run | Yrd Mat Sub Machines Disabled 6 | . 6 . Max in Single Turn 3 | . 3 . Machines Repaired . | . . . Machines Dismantled . | . . . Machines Sabotaged . | . . . Overloaded Fab Kills . | . . . Hacking | -11 -10 -10 --------- Run | Yrd Mat Sub Machines Accessed 7 | . 7 . Terminals 6 | . 6 . Fabricators . | . . . Repair Stations . | . . . Recycling Units 1 | . 1 . Scanalyzers . | . . . Garrison Access . | . . . Total Hacks 27 | . 27 . Successful 20 | . 20 . Failed 7 | . 7 . Catastrophic . | . . . Database Lockouts . | . . . Manual 5 | . 5 . Terminals 15 | . 15 . Fabricators . | . . . Repair Stations . | . . . Recycling Units 12 | . 12 . Scanalyzers . | . . . Garrison Access . | . . . Terminal Hacks 11 | . 11 . Record 9 | . 9 . Prototype ID Bank 1 | . 1 . Unreport Threat 1 | . 1 . Fabricator Hacks . | . . . Repair Station Hacks . | . . . Recycling Unit Hacks 9 | . 9 . Recycle Component 5 | . 5 . Process 1 | . 1 . Report Inventory 1 | . 1 . Retrieve Matter 1 | . 1 . Retrieve Components 1 | . 1 . Scanalyzer . | . . . Garrison Access Hacks . | . . . Unauthorized Hacks . | . . . Terminals . | . . . Fabricators . | . . . Repair Stations . | . . . Recycling Units . | . . . Scanalyzers . | . . . Garrison Access . | . . . Data Cores Recovered . | . . . Used . | . . . Hacking Detections 6 | . 6 . Full Trace Events 4 | . 4 . Feedback Events . | . . . Feedback Blocked . | . . . Robot Schematics Acquired . | . . . Robots Built . | . . . Authchips . | . . . Time . | . . . Total Robot Build Rating . | . . . Part Schematics Acquired . | . . . Parts Built . | . . . Authchips . | . . . Time . | . . . Total Part Build Rating . | . . . Part Studies Acquired . | . . . Parts Repaired . | . . . Time . | . . . Parts Recycled 5 | . 5 . Recycled Matter 94 | . 94 . Retrieved Matter 237 | . 237 . Retrieved Components . | . . . Parts Scanalyzed . | . . . Part Schematics Acquired . | . . . Parts Damaged . | . . . Bothacking | -11 -10 -10 ------------ Run | Yrd Mat Sub Used RIF Installer . | . . . Robots Hacked . | . . . Non-combat . | . . . Combat . | . . . Robot Hacks Applied . | . . . Relay Couplers Released . | . . . Fabnet Peak Effective % . | . . . Robots Rewired . | . . . Allies Hacked . | . . . Hacks Repelled . | . . . Allies | -11 -10 -10 -------- Run | Yrd Mat Sub Total Allies . | . . . Largest Group . | . . . Highest-Rated Group . | . . . Highest-Rated Ally . | . . . Total Orders . | . . . Ally Attacks . | . . . Total Damage . | . . . Kills . | . . . Allies Corrupted . | . . . Allies Melted . | . . . X0-1V1 Amusement Gains 9 | . 9 . Bad Acts 3 | . . 3 Intel | -11 -10 -10 ------- Run | Yrd Mat Sub Active Infowar (turns) 1243 | 10 1233 . Sensors 1081 | . 1081 . Terrain 162 | 10 152 . Robot Analysis Total . | . . . Derelict Logs Recovered . | . . . Drone Launches . | . . . Drone Recoveries . | . . . Exploration | -11 -10 -10 ------------- Run | Yrd Mat Sub Turns Passed 2810 | 177 2505 128 Spaces Moved 690 | 116 538 36 Core 22 | 22 . . Treads 200 | . 200 . Legs 451 | 94 321 36 Wheels . | . . . Hover 9 | . 9 . Flight 8 | . 8 . Fastest Speed 50 | 50 50 120 Average Speed 345 | 106 407 199 Slowest Speed 910 | 120 910 400 Overloaded Moves . | . . . Propulsion Burnouts . | . . . Robots Hopped 1 | . 1 . Potential Cave-ins . | . . . Cave-ins Triggered . | . . . Exploration Rate (%) 32 | 6 91 1 Regions Visited 2 Branch Regions 1 Pre-discovered Areas . | . . . Known Exits Taken . | . . . Unknown Exits Taken 2 | 1 1 . Scrap Searched 1 | . . 1 Spaces Dug . | . . . Terrain Destroyed 105 | . 104 1 Melee . | . . . Projectile 1 | . . 1 AOE 104 | . 104 . Terrain Rammed . | . . . Walls Destroyed . | . . . Machines Disabled . | . . . Actions | -11 -10 -10 --------- Run | Yrd Mat Sub Total 955 | 152 732 71 Wait 54 | 3 50 1 Move 686 | 115 535 36 Hop 1 | . 1 . Pick Up 48 | 12 31 5 Fast Attach . | . . . Attach 17 | 7 7 3 Detach 2 | . 1 1 Swap 23 | 2 19 2 Drop 27 | 4 14 9 Fire 96 | 9 73 14 Melee . | . . . Ram . | . . . Kick . | . . . Crush 1 | . 1 . Escape Stasis . | . . . Rewire . | . . . Trap . | . . . Miscellaneous . | . . . Route ------- -11/Scrapyard -10/Materials (discovered 6 exits: [*Mat x3] / [*Min x2] / [*Sub]) -10/Subcaves History --------- Turn | Location | Event 2 | -11/Scrapyard | Met Revision 17 112 | -11/Scrapyard | Discovered new exit (range 8) 178 | -11/Scrapyard | Entered Materials 309 | -10/Materials | Lost 4 parts (1p1n2w) 313 | -10/Materials | Discovered new exit (range 15) 430 | -10/Materials | Discovered new exit (range 12) 1056 | -10/Materials | Build established: Mutant 1115 | -10/Materials | Discovered new exit (range 7) 1717 | -10/Materials | Core integrity fell below 50% 2080 | -10/Materials | Discovered new exit (range 16) 2462 | -10/Materials | Build established: Scavenger-Mutant 2465 | -10/Materials | Core integrity fell below 20% 2507 | -10/Materials | Discovered new exit (range 16) 2507 | -10/Materials | Discovered new exit (range 9) 2683 | -10/Materials | Prayed at D.C.S.S. Altar Unit 2683 | -10/Materials | Entered Subcaves 2758 | -10/Subcaves | Ambushed by swarm of Subdwellers 2758 | -10/Subcaves | Ambushed by Subdwellers from Twisted Machinery 2758 | -10/Subcaves | Ambushed by Subdwellers from Twisted Machinery 2808 | -10/Subcaves | X0-1V1 sent hostile G-34 Mercenary (x3) 2811 | -10/Subcaves | Destroyed by G-34 Mercenary with Small Laser Last Messages --------------- The unstable cave ceiling collapses. Sub. Monowheel crushed. JR-GRK(R) destroyed. Dropped Lgt. Assault Rifle. Lgt. Assault Rifle crushed and broken. Acquired Sub. Machine Gun. Dropped Barrage Gun. The Prototype Device is a fragile type of part, which are destroyed if removed (these are marked with a colon in the parts list, as a reminder). Identified X0-1V1's Piety Tracker. [Achievement: Risk Taker] X0-1V1: "C'mon, do something!" G-34 Mercenary form resolidifies at new position. Acquired 72 matter. [Achievement: First Step to Greatness] X0-1V1 howls with laughter! [Achievement: 5k Club] Map ----- +----------------------------------------------------+ | ?????????????????????????????### = #???????????? | | ?????????????????????????????# #=/* ##??????????? | | ??????????????????????????#### / #??????????? | | ??????????????????????????# # ##??????????? | | ???????????????????????????## # ##???????????? | | ??????????????????????????## ########????????????? | | ?????????????????????????## ##???????????????????? | | ????????????????????????## ##????????????????????? | | ???????????????????????## #?????????????????????? | | ??????????????????????## ## #????????????????????? | | ?????????????????????##"##?#?????????????????????? | | ????????????????????## ##????????????????????????? | | ???????????????????## ##?????????????????????????? | | ??????????????????## ##??????????????????????????? | | ?????????????????## ##???????????????????????????? | | ?????????????????# ###???????????????????????????? | | ?????????????????##!%#???????????????????????????? | | ??????????????????##|####????????????????????????? | | ???????????????????# # #????????????????????????? | | ???????????????????## #????????????????????????? | | ????????????????????## ##????????????????????????? | | ?????????????????????## ##???????????????????????? | | ??????????????????????##*###?????????????????????? | | ???????????????????????##""#?????????????????????? | | ???????????????????????##["#?????????????????????? | | ???????????????????????##@##?????????????????????? | | ????????????????????????#!%#?????????????????????? | | ????????????????????????#!##?????????????????????? | | ????????????????????????#g#??????????????????????? | | ????????????????????????g##??????????????????????? | | ????????????????????????#????????????????????????? | | ?????????????????????????????????????????????????? | | ?????????????????????????????????????????????????? | | ?????????????????????????????????????????????????? | | ?????????????????????????????????????????????????? | | ?????????????????????????????????????????????????? | | ?????????????????????????????????????????????????? | | ?????????????????????????????????????????????????? | | ?????????????????????????????????????????????????? | | ?????????????????????????????????????????????????? | | ?????????????????????????????????????????????????? | | ?????????????????????????????????????????????????? | | ?????????????????????????????????????????????????? | | ?????????????????????????????????????????????????? | | ?????????????????????????????????????????????????? | | ?????????????????????????????????????????????????? | | ?????????????????????????????????????????????????? | | ?????????????????????????????????????????????????? | | ?????????????????????????????????????????????????? | | ?????????????????????????????????????????????????? | +----------------------------------------------------+ Best States ------------- Heat Dissipation 25 Energy Generation 10 Energy Capacity 450 Matter Stores 350 Matter Capacity 350 Sight Range 16 Robot Scan Range 14 Terrain Scan Range 16 Terrain Scan Density 10 Armor Coverage 800 Evasion (%) 55 Recoil Reduction 1 Authchip Count 3 Item Schematics ----------------- None Robot Schematics ------------------ None Fabricated ------------ Nothing Repaired ---------- Nothing Studied --------- None Alien Tech Used ----------------- None Achievements -------------- 5k Club Chaos Is Inevitable Crack Shot Everything Is Under Control First Step to Greatness For Emergencies Only Let's See Who's Tougher Loot Pinata One Hack Too Far Organ Harvest Risk Taker Storm Trooper There's More Where That Came From Uninvited Guest Challenges ------------ None Game ------ Seed BoltAnalysisCoupler Manual? 0 Play Time 00:47:04 Cumulative 0.7 hours Start 2026.08.01 @ 10:00:07 End 2026.08.01 @ 10:47:46 Sessions 1 Manual Loads 0 Difficulty Rogue Special Mode None Game No. 1 Rogue 1 Adventurer 0 Explorer 0 Win Type - Total 0 Types 0/0/0/0/0/0/0/0/0/0 Lore% 0 Gallery% 1 Achievement% 2 Wizard Run 0 Options --------- Layout 1 ASCII 0 Keyboard 0 Movement Mouse Keybinds 0 Fullscreen 1 Font 32/Tamsyn Map View 50x35 Zoom Use 0% Tactical HUD 0 Map Filters NONE Filters NONE Steam 1 RUN: a29a62ef-9083-4c08-9478-7fe01873eafb